fUSD/lending_fUSD_20251012
["ID","MTS","AMOUNT","RATE_DAILY","PERIOD"]
[391021549,1760296243267,-154.156935,0.00015,2]
[391021550,1760296243276,-154.156935,0.00015,2]
[391021551,1760296243285,-154.156935,0.00015,2]
[391021552,1760296243295,-154.156935,0.00015,2]
[391021553,1760296243303,-154.15693,0.00015,2]
[391021554,1760296243313,-184.324591,0.00015,2]
[391021555,1760296243322,-184.324591,0.00015,2]
[391021556,1760296243332,-184.324591,0.00015,2]
[391021557,1760296243341,-151.0,0.00015,2]
[391021558,1760296243351,-184.324591,0.00015,2]
[391021559,1760296243360,-151.0,0.00015,2]
[391021560,1760296243370,-184.324591,0.00015,2]
[391021561,1760296243380,-151.0,0.00015,2]
[391021562,1760296243391,-184.324591,0.00015,2]
[391021563,1760296243401,-151.0,0.00015,2]
[391021564,1760296243412,-184.324591,0.00015,2]
[391021565,1760296243422,-151.0,0.00015,2]
[391021566,1760296243433,-184.324591,0.00015,2]
[391021567,1760296243444,-151.0,0.00015,2]
[391021568,1760296243455,-184.324591,0.00015,2]
[391021569,1760296243468,-293.641501,0.00015,2]
[391021570,1760296243480,-184.324591,0.00015,2]
[391021571,1760296243490,-184.324591,0.00015,2]
[391021572,1760296243503,-184.324591,0.00015,2]
[391021573,1760296243512,-184.324591,0.00015,2]
[391021574,1760296243521,-184.324591,0.00015,2]
[391021575,1760296243531,-184.324591,0.00015,2]
[391021576,1760296243540,-184.324591,0.00015,2]
[391021577,1760296243549,-565.247798,0.00015,2]
[391021578,1760296243559,-184.324591,0.00015,2]
[391021579,1760296243569,-565.247798,0.00015,2]
[391021580,1760296243578,-184.324591,0.00015,2]
[391021581,1760296243587,-565.247798,0.00015,2]
[391021582,1760296243596,-184.324591,0.00015,2]
[391021583,1760296243605,-565.247798,0.00015,2]
[391021584,1760296243615,-184.324596,0.00015,2]
[391021585,1760296243623,-565.247798,0.00015,2]
[391021586,1760296243633,-565.247798,0.00015,2]
[391021587,1760296243642,-565.247798,0.00015,2]
[391021588,1760296243651,-565.247798,0.00015,2]
[391021589,1760296243660,-565.247798,0.00015,2]
[391021590,1760296243670,-565.247798,0.00015,2]
[391021591,1760296243679,-565.247798,0.00015,2]
[391021592,1760296243689,-565.247798,0.00015,2]
[391021593,1760296243698,-565.247798,0.00015,2]
[391021594,1760296243707,-565.247798,0.00015,2]
[391021595,1760296243717,-565.247798,0.00015,2]
[391021596,1760296243726,-565.247798,0.00015,2]
[391021597,1760296243736,-565.247798,0.00015,2]
[391021598,1760296243745,-565.247798,0.00015,2]
[391021599,1760296243757,-565.247798,0.00015,2]
[391021600,1760296243767,-565.247793,0.00015,2]
[391021601,1760296243776,-177.657138,0.00015,2]
[391021602,1760296243785,-151.0,0.00015,2]
[391021603,1760296243795,-151.0,0.00015,2]
[391021604,1760296243804,-151.0,0.00015,2]
[391021605,1760296243813,-151.0,0.00015,2]
[391021606,1760296243823,-151.0,0.00015,2]
[391021607,1760296243833,-151.0,0.00015,2]
[391021608,1760296243842,-152.880403,0.00015,2]
[391021609,1760296243852,-151.0,0.00015,2]
[391021610,1760296243862,-151.0,0.00015,2]
[391021611,1760296243875,-151.0,0.00015,2]
[391021612,1760296243887,-151.0,0.00015,2]
[391021613,1760296243896,-151.0,0.00015,2]
[391021614,1760296243906,-152.27168,0.00015,2]
[391021615,1760296243915,-151.0,0.00015,2]
[391021616,1760296243924,-216.709567,0.00015,2]
[391021617,1760296243934,-151.0,0.00015,2]
[391021618,1760296243943,-151.0,0.00015,2]
[391021619,1760296243952,-151.0,0.00015,2]
[391021620,1760296243965,-151.0,0.00015,2]
[391021621,1760296243974,-151.0,0.00015,2]
[391021622,1760296243983,-151.0,0.00015,2]
[391021623,1760296243991,-151.0,0.00015,2]
[391021624,1760296244003,-151.0,0.00015,2]
[391021625,1760296244012,-165.062372,0.00015,2]
[391021626,1760296244021,-836.886533,0.00015,2]
[391021627,1760296244030,-836.886533,0.00015,2]
[391021628,1760296244039,-836.886533,0.00015,2]
[391021629,1760296244048,-836.886533,0.00015,2]
[391021630,1760296244057,-836.886533,0.00015,2]
[391021631,1760296244066,-836.886533,0.00015,2]
[391021632,1760296244075,-836.886533,0.00015,2]
[391021633,1760296244084,-836.886533,0.00015,2]
[391021634,1760296244094,-836.886533,0.00015,2]
[391021635,1760296244104,-836.886533,0.00015,2]
[391021636,1760296244114,-836.886533,0.00015,2]
[391021637,1760296244123,-836.886533,0.00015,2]
[391021638,1760296244132,-836.886533,0.00015,2]
[391021639,1760296244142,-836.886533,0.00015,2]
[391021640,1760296244151,-836.886533,0.00015,2]
[391021641,1760296244160,-836.886533,0.00015,2]
[391021642,1760296244169,-836.886533,0.00015,2]
[391021643,1760296244177,-836.886533,0.00015,2]
[391021644,1760296244186,-836.886533,0.00015,2]
[391021645,1760296244195,-836.886529,0.00015,2]
[391021646,1760296244205,-151.0,0.00015,2]
[391021647,1760296244214,-151.0,0.00015,2]
[391021648,1760296244224,-151.0,0.00015,2]
[391021649,1760296244234,-151.0,0.00015,2]
[391021650,1760296244245,-151.0,0.00015,2]
[391021651,1760296244256,-151.0,0.00015,2]
[391021652,1760296244265,-257.390619,0.00015,2]
[391021653,1760296244275,-151.0,0.00015,2]
[391021654,1760296244284,-151.0,0.00015,2]
[391021655,1760296244294,-151.0,0.00015,2]
[391021656,1760296244305,-151.0,0.00015,2]
[391021657,1760296244315,-300.0,0.00015,2]
[391021658,1760296244327,-151.0,0.00015,2]
[391021659,1760296244336,-151.0,0.00015,2]
[391021660,1760296244346,-264.769189,0.00015,2]
[391021661,1760296244355,-152.68773,0.00015,2]
[391021662,1760296244364,-151.0,0.00015,2]
[391021663,1760296244373,-151.0,0.00015,2]
[391021664,1760296244383,-291.476215,0.00015,2]
[391021665,1760296244392,-151.0,0.00015,2]
[391021666,1760296244401,-151.0,0.00015,2]
[391021667,1760296244410,-151.0,0.00015,2]
[391021668,1760296244419,-151.0,0.00015,2]
[391021669,1760296244428,-151.0,0.00015,2]
[391021670,1760296244438,-151.0,0.00015,2]
[391021671,1760296244447,-151.0,0.00015,2]
[391021672,1760296244457,-153.699509,0.00015,2]
[391021673,1760296244467,-341.123847,0.00015,2]
[391021674,1760296244478,-341.123847,0.00015,2]
[391021675,1760296244487,-341.123847,0.00015,2]
[391021676,1760296244495,-341.123847,0.00015,2]
[391021677,1760296244506,-341.123847,0.00015,2]
[391021678,1760296244515,-341.123847,0.00015,2]
[391021679,1760296244524,-341.123847,0.00015,2]
[391021680,1760296244533,-341.123847,0.00015,2]
[391021681,1760296244542,-341.123847,0.00015,2]
[391021682,1760296244561,-341.123847,0.00015,2]
[391021683,1760296244571,-341.123847,0.00015,2]
[391021684,1760296244580,-341.123847,0.00015,2]
[391021685,1760296244590,-341.123847,0.00015,2]
[391021686,1760296244599,-341.123847,0.00015,2]
[391021687,1760296244608,-341.123847,0.00015,2]
[391021688,1760296244617,-341.123847,0.00015,2]
[391021689,1760296244627,-341.123847,0.00015,2]
[391021690,1760296244636,-341.123847,0.00015,2]
[391021691,1760296244646,-341.123847,0.00015,2]
[391021692,1760296244656,-341.123856,0.00015,2]
[391021693,1760296244666,-256.461261,0.00015,2]
[391021694,1760296244678,-256.461261,0.00015,2]
[391021695,1760296244689,-256.461261,0.00015,2]
[391021696,1760296244699,-256.461261,0.00015,2]
[391021697,1760296244709,-256.461261,0.00015,2]
[391021698,1760296244718,-256.461261,0.00015,2]
[391021699,1760296244727,-155.371506,0.00015,2]
[391021700,1760296244737,-256.461261,0.00015,2]
[391021701,1760296244746,-256.461261,0.00015,2]
[391021702,1760296244757,-256.461261,0.00015,2]
[391021703,1760296244767,-256.461261,0.00015,2]
[391021704,1760296244777,-256.461261,0.00015,2]
[391021705,1760296244787,-256.461261,0.00015,2]
[391021706,1760296244796,-256.461261,0.00015,2]
[391021707,1760296244806,-256.461261,0.00015,2]
[391021708,1760296244816,-256.461261,0.00015,2]
[391021709,1760296244825,-256.461261,0.00015,2]
[391021710,1760296244835,-256.461261,0.00015,2]
[391021711,1760296244845,-256.461261,0.00015,2]
[391021712,1760296244854,-256.461261,0.00015,2]
[391021713,1760296244864,-256.461252,0.00015,2]
[391021714,1760296244873,-151.0,0.00015,2]
[391021715,1760296244883,-151.0,0.00015,2]
[391021716,1760296244895,-151.0,0.00015,2]
[391021717,1760296244905,-151.0,0.00015,2]
[391021718,1760296244914,-151.0,0.00015,2]
[391021719,1760296244924,-151.0,0.00015,2]
[391021720,1760296244934,-151.0,0.00015,2]
[391021721,1760296244943,-285.990083,0.00015,2]
[391021722,1760296244953,-151.0,0.00015,2]
[391021723,1760296244965,-152.782843,0.00015,2]
[391021724,1760296244975,-152.233256,0.00015,2]
[391021725,1760296244984,-151.0,0.00015,2]
[391021726,1760296244994,-151.0,0.00015,2]
[391021727,1760296245005,-152.351337,0.00015,2]
[391021728,1760296245015,-152.325198,0.00015,2]
[391021729,1760296245025,-151.0,0.00015,2]
[391021730,1760296245035,-168.0,0.00015004,2]
[391021731,1760296245045,-168.0,0.00015017,2]
[391021732,1760296245055,-1852.55,0.00015025,2]
[391021733,1760296245065,-353.0,0.00015056,2]
[391021734,1760296245075,-353.0,0.00015087,2]
[391021735,1760296245085,-736.94102683,0.000151,2]
[391021736,1760296245095,-1873.0,0.000151,2]
[391021737,1760296245104,-353.0,0.00015103,2]
[391021738,1760296245114,-353.0,0.0001514,2]
[391021739,1760296245125,-414.97968525,0.00015186,2]
[391021740,1760296245134,-167.7698824,0.00015188,2]
[391021741,1760296245144,-151.0,0.000152,2]
[391021742,1760296245153,-736.94102683,0.000152,2]
[391021743,1760296245163,-723.2721165,0.000152,2]
[391021744,1760296245177,-300.0,0.00015236,2]
[391021745,1760296245187,-395.0,0.00015253,2]
[391021746,1760296245719,-500.0,0.00015254,2]
[391021747,1760296245729,-500.0,0.00015274,2]
[391021748,1760296245738,-500.0,0.00015274,2]
[391021749,1760296245748,-1077.68407582,0.00015281,2]
[391021750,1760296245759,-383.95182773,0.00015281,2]
[391021751,1760296245768,-2500.0,0.00015281,2]
[391021752,1760296245779,-395.0,0.00015291,2]
[391021753,1760296245788,-1852.55,0.00015299,2]
[391021754,1760296245798,-723.2721165,0.000153,2]
[391021755,1760296245808,-313.65515203,0.00015321,2]
[391021756,1760296245819,-191.40641208,0.00015331,2]
[391021757,1760296245830,-5270.1062146,0.000154,2]
[391021758,1760296245840,-736.94102683,0.000154,2]
[391021759,1760296245850,-166.66,0.0001542,2]
[391021760,1760296245859,-441.29381274,0.00015441,2]
[391021761,1760296245869,-1962.0,0.00015447,2]
[391021762,1760296245879,-395.0,0.00015466,2]
[391021763,1760296245895,-414.97968525,0.00015471,2]
[391021764,1760296245906,-151.0,0.000155,2]
[391021765,1760296245916,-736.94102683,0.000155,2]
[391021766,1760296245926,-723.2721165,0.000155,2]
[391021767,1760296245936,-168.0,0.00015512,2]
[391021768,1760296245946,-1000.0,0.00015521,2]
[391021769,1760296245956,-384.49230292,0.00015521,2]
[391021770,1760296245967,-696.87269476,0.00015521,2]
[391021771,1760296245976,-500.0,0.00015528,2]
[391021772,1760296245985,-500.0,0.00015548,2]
[391021773,1760296245995,-500.0,0.00015548,2]
[391021774,1760296246005,-1852.55,0.00015573,2]
[391021775,1760296246015,-730.48322297,0.00015596,2]
[391021776,1760296246024,-500.0,0.000156,2]
[391021777,1760296246035,-723.2721165,0.000156,2]
[391021778,1760296246044,-1600.0,0.00015608,2]
[391021779,1760296246054,-639.0,0.00015644,2]
[391021780,1760296246064,-395.0,0.0001566,2]
[391021781,1760296246075,-1680.0,0.00015674,2]
[391021782,1760296246084,-1200.0,0.000157,3]
[391021783,1760296246096,-736.94102683,0.000157,2]
[391021784,1760296246106,-161.53,0.00015712,2]
[391021785,1760296246116,-255.0,0.00015715,2]
[391021786,1760296246127,-313.65515203,0.00015742,2]
[391021787,1760296246137,-395.0,0.00015749,2]
[391021788,1760296246148,-414.97968525,0.00015757,2]
[391021789,1760296246158,-191.40641208,0.00015762,2]
[391021790,1760296246168,-420.0,0.00015784,2]
[391021791,1760296246178,-395.0,0.0001579,2]
[391021792,1760296246188,-500.0,0.00015802,2]
[391021793,1760296246198,-2209.12375045,0.00015807,2]
[391021794,1760296246208,-413.23,0.00015817,2]
[391021795,1760296246217,-500.0,0.00015822,2]
[391021796,1760296246226,-500.0,0.00015822,2]
[391021797,1760296246235,-4497.26315871,0.00015822,2]
[391021798,1760296246251,-395.0,0.00015845,2]
[391021799,1760296246260,-1852.55,0.00015847,2]
[391021800,1760296246270,-2036.45595,0.0001585,2]
[391021801,1760296246280,-981.78,0.00015858,2]
[391021802,1760296246289,-277.35679052,0.00015953,2]
[391021803,1760296246299,-334.5472959,0.00015961,2]
[391021804,1760296246308,-1000.0,0.00015999,2]
[391021805,1760296246319,-156.89847703,0.00016,5]
[391021806,1760296246328,-493.0,0.00016,2]
[391021807,1760296246338,-151.0,0.00016,2]
[391021808,1760296246348,-180.0,0.00016,2]
[391021809,1760296246358,-249.58817637,0.00016,2]
[391021810,1760296246367,-99031.42271524,0.00016,2]
[391021811,1760296246377,-500.0,0.00016,2]
[391021812,1760296246387,-500.0,0.00016,2]
[391021813,1760296246396,-500.0,0.00016,2]
[391021814,1760296246406,-500.0,0.00016,2]
[391021815,1760296246416,-500.0,0.00016,2]
[391021816,1760296246426,-500.0,0.00016,2]
[391021817,1760296246436,-500.0,0.00016,2]
[391021818,1760296246446,-500.0,0.00016,2]
[391021819,1760296246456,-500.0,0.00016,2]
[391021820,1760296246467,-2000.0,0.00016,2]
[391021821,1760296246479,-500.0,0.00016,2]
[391021822,1760296246490,-500.0,0.00016,2]
[391021823,1760296246499,-500.0,0.00016,2]
[391021824,1760296246510,-500.0,0.00016,2]
[391021825,1760296246520,-500.0,0.00016,2]
[391021826,1760296246531,-500.0,0.00016,2]
[391021827,1760296246542,-500.0,0.00016,2]
[391021828,1760296246552,-500.0,0.00016,2]
[391021829,1760296246562,-500.0,0.00016,2]
[391021830,1760296246572,-500.0,0.00016,2]
[391021831,1760296246583,-512.0,0.00016,2]
[391021832,1760296246593,-258.707752,0.00016,2]
[391021833,1760296246603,-2000.0,0.0001601,2]
[391021835,1760296246613,-2000.0,0.0001602,2]
[391021837,1760296246623,-2155.418445,0.0001603,2]
[391021838,1760296246634,-414.97968525,0.00016043,2]
[391021839,1760296246644,-1500.0,0.00016068,2]
[391021840,1760296246654,-400.0,0.0001607,2]
[391021841,1760296246665,-500.0,0.00016076,2]
[391021842,1760296246674,-749.56052645,0.00016079,8]
[391021843,1760296246684,-500.0,0.00016096,2]
[391021844,1760296246697,-500.0,0.00016096,2]
[391021845,1760296246707,-1852.55,0.00016121,2]
[391021846,1760296246716,-171.58,0.00016125,2]
[391021847,1760296246727,-313.65515203,0.00016163,2]
[391021848,1760296246738,-191.40641208,0.00016193,2]
[391021849,1760296246747,-2700.17553389,0.000162,2]
[391021850,1760296246759,-400.0,0.0001627,2]
[391021851,1760296246768,-400.0,0.0001627,2]
[391021852,1760296246778,-32915.08286715,0.00016274,2]
[391021853,1760296246788,-730.48322297,0.00016293,2]
[391021854,1760296246798,-505.5,0.00016324,2]
[391021855,1760296246808,-414.97968525,0.00016329,2]
[391021856,1760296246818,-749.56052645,0.00016337,9]
[391021857,1760296246828,-500.0,0.0001635,2]
[391021858,1760296246837,-500.0,0.0001637,2]
[391021859,1760296246847,-500.0,0.0001637,2]
[391021860,1760296246857,-400.0,0.0001637,2]
[391021861,1760296246867,-300.0,0.0001637,2]
[391021862,1760296246877,-1852.55,0.00016395,2]
[391021863,1760296246892,-150.0,0.00016399,2]
[391021864,1760296246902,-250.0,0.000164,2]
[391021865,1760296246912,-250.0,0.000164,2]
[391021866,1760296246922,-250.0,0.000164,2]
[391021867,1760296246934,-250.0,0.000164,2]
[391021868,1760296246944,-250.0,0.000164,2]
[391021869,1760296246954,-250.0,0.000164,2]
[391021870,1760296246967,-250.0,0.000164,2]
[391021871,1760296246977,-250.0,0.000164,2]
[391021872,1760296246988,-250.0,0.000164,2]
[391021873,1760296246998,-250.0,0.000164,2]
[391021874,1760296247009,-250.0,0.000164,2]
[391021875,1760296247020,-250.0,0.000164,2]
[391021876,1760296247030,-150.0,0.000164,7]
[391021877,1760296247040,-279.84866342,0.000164,2]
[391021878,1760296247050,-14477.34902497,0.00016435,2]
[391021879,1760296247060,-2252.41,0.00016438,2]
[391021880,1760296247070,-500.0,0.00016438,2]
[391021881,1760296247080,-500.0,0.00016438,2]
[391021882,1760296247091,-500.0,0.00016438,2]
[391021883,1760296247101,-465.3,0.00016438,2]
[391021884,1760296247111,-500.0,0.00016438,2]
[391021885,1760296247120,-500.0,0.00016438,2]
[391021886,1760296247130,-500.0,0.00016438,2]
[391021887,1760296247140,-500.0,0.00016438,2]
[391021888,1760296247151,-511.45594357,0.00016438,2]
[391021889,1760296247162,-500.0,0.00016438,2]
[391021890,1760296247172,-500.0,0.00016438,2]
[391021891,1760296247182,-416.71344349,0.00016438,2]
[391021892,1760296247192,-500.0,0.00016438,2]
[391021893,1760296247202,-1000.0,0.00016438,2]
[391021894,1760296247211,-1000.0,0.00016438,2]
[391021895,1760296247222,-1000.0,0.00016438,2]
[391021896,1760296247232,-1000.0,0.00016438,2]
[391021897,1760296247242,-1000.0,0.00016438,2]
[391021898,1760296247253,-1000.0,0.00016438,2]
[391021899,1760296247263,-1000.0,0.00016438,2]
[391021900,1760296247273,-1000.0,0.00016438,2]
[391021901,1760296247283,-1000.0,0.00016438,2]
[391021902,1760296247293,-1000.0,0.00016438,2]
[391021903,1760296247302,-1000.0,0.00016438,2]
[391021904,1760296247312,-1000.0,0.00016438,2]
[391021905,1760296247321,-1000.0,0.00016438,2]
[391021906,1760296247331,-1000.0,0.00016438,2]
[391021907,1760296247341,-1000.0,0.00016438,2]
[391021908,1760296247351,-1000.0,0.00016438,2]
[391021909,1760296247361,-4530.69,0.00016438,2]
[391021910,1760296247371,-223.47,0.00016438,2]
[391021911,1760296247382,-263.357394,0.00016438,2]
[391021912,1760296247391,-263.357394,0.00016438,2]
[391021913,1760296247401,-263.357394,0.00016438,2]
[391021914,1760296247410,-263.357394,0.00016438,2]
[391021915,1760296247420,-263.357394,0.00016438,2]
[391021916,1760296247429,-263.357394,0.00016438,2]
[391021917,1760296247439,-263.357394,0.00016438,2]
[391021918,1760296247449,-263.357394,0.00016438,2]
[391021919,1760296247459,-263.357394,0.00016438,2]
[391021920,1760296247468,-263.357394,0.00016438,2]
[391021921,1760296247478,-263.357394,0.00016438,2]
[391021922,1760296247487,-263.357394,0.00016438,2]
[391021923,1760296247496,-263.357394,0.00016438,2]
[391021924,1760296247506,-263.357394,0.00016438,2]
[391021925,1760296247515,-263.357394,0.00016438,2]
[391021926,1760296247525,-263.357394,0.00016438,2]
[391021927,1760296247535,-263.357394,0.00016438,2]
[391021928,1760296247545,-263.357394,0.00016438,2]
[391021929,1760296247554,-263.357394,0.00016438,2]
[391021930,1760296247564,-263.357398,0.00016438,2]
[391021931,1760296247574,-150.0,0.00016438,2]
[391021932,1760296247583,-162.63,0.0001644,2]
[391021933,1760296247593,-162.63,0.0001644,2]
[391021934,1760296247602,-162.63,0.0001644,2]
[391021935,1760296247611,-294.19587516,0.00016467,2]
[391021936,1760296247621,-500.9,0.000165,2]
[391021937,1760296247630,-313.65515203,0.00016584,2]
[391021938,1760296247640,-749.56052645,0.00016594,11]
[391021939,1760296247649,-166.66,0.00016596,2]
[391021940,1760296247659,-301.36,0.000166,2]
[391021941,1760296247668,-546.32,0.000166,2]
[391021942,1760296247679,-545.91,0.000166,2]
[391021943,1760296247689,-826.68,0.000166,2]
[391021944,1760296247701,-413.34,0.000166,2]
[391021945,1760296247711,-545.81,0.000166,2]
[391021946,1760296247721,-413.34,0.000166,2]
[391021947,1760296247730,-300.0,0.00016606,2]
[391021948,1760296247740,-414.97968525,0.00016614,2]
[391021949,1760296247750,-2000.0,0.00016616,2]
[391021950,1760296247761,-500.0,0.00016624,2]
[391021951,1760296247772,-191.40641208,0.00016624,2]
[391021952,1760296247781,-194.72199893,0.00016643,2]
[391021953,1760296247791,-350.0,0.00016643,2]
[391021954,1760296247801,-350.0,0.00016643,2]
[391021955,1760296247811,-350.0,0.00016643,2]
[391021956,1760296247820,-200.0,0.00016643,2]
[391021957,1760296247830,-500.0,0.00016644,2]
[391021958,1760296247839,-500.0,0.00016644,2]
[391021959,1760296247848,-1852.55,0.00016669,2]
[391021960,1760296247858,-350.0,0.00016684,2]
[391021961,1760296247868,-350.0,0.00016684,2]
[391021962,1760296247877,-350.0,0.00016684,2]
[391021963,1760296247890,-154.64170809,0.000167,7]
[391021964,1760296247900,-1320.0,0.000167,4]
[391021965,1760296247909,-2252.41,0.00016712,2]
[391021966,1760296247919,-500.0,0.00016712,2]
[391021967,1760296247930,-500.0,0.00016712,2]
[391021968,1760296247939,-465.3,0.00016712,2]
[391021969,1760296247948,-163.16,0.00016712,2]
[391021970,1760296247958,-350.0,0.00016726,2]
[391021971,1760296247969,-350.0,0.00016726,2]
[391021972,1760296247980,-350.0,0.00016726,2]
[391021973,1760296247990,-2495.6265866,0.00016727,2]
[391021974,1760296248000,-1926.8077341,0.00016738,2]
[391021975,1760296248011,-2817.4437076,0.00016739,2]
[391021976,1760296248021,-350.0,0.00016767,2]
[391021977,1760296248031,-350.0,0.00016767,2]
[391021978,1760296248049,-350.0,0.00016767,2]
[391021979,1760296248060,-350.0,0.00016809,2]
[391021980,1760296248069,-350.0,0.00016809,2]
[391021981,1760296248079,-350.0,0.00016809,2]
[391021982,1760296248089,-2036.45595,0.0001685,2]
[391021983,1760296248100,-350.0,0.00016851,2]
[391021984,1760296248110,-350.0,0.00016851,2]
[391021985,1760296248119,-350.0,0.00016851,2]
[391021986,1760296248354,-749.56052645,0.00016852,12]
[391021987,1760296248364,-350.0,0.00016892,2]
[391021988,1760296248374,-350.0,0.00016892,2]
[391021989,1760296248383,-350.0,0.00016892,2]
[391021990,1760296248392,-500.0,0.00016898,2]
[391021991,1760296248401,-414.97968525,0.000169,2]
[391021992,1760296248410,-500.0,0.00016918,2]
[391021993,1760296248419,-500.0,0.00016918,2]
[391021994,1760296248428,-171.58,0.00016919,2]
[391021995,1760296248437,-433.0,0.00016926,2]
[391021996,1760296248446,-150.0,0.00016934,2]
[391021997,1760296248455,-350.0,0.00016934,2]
[391021998,1760296248464,-350.0,0.00016934,2]
[391021999,1760296248476,-1852.55,0.00016943,2]
[391022000,1760296248486,-350.0,0.00016975,2]
[391022001,1760296248495,-350.0,0.00016975,2]
[391022002,1760296248508,-2252.41,0.00016986,2]
[391022003,1760296248523,-500.0,0.00016986,2]
[391022004,1760296248532,-500.0,0.00016986,2]
[391022005,1760296248541,-465.3,0.00016986,2]
[391022006,1760296248550,-250.0,0.00016986,2]
[391022007,1760296248559,-730.48322297,0.00016989,2]
[391022008,1760296248568,-300.0,0.00016999,2]
[391022009,1760296248577,-300.0,0.00016999,2]
[391022010,1760296248587,-300.0,0.00016999,2]
[391022011,1760296248596,-300.0,0.00016999,2]
[391022012,1760296248606,-300.0,0.00016999,2]
[391022013,1760296248615,-300.0,0.00016999,2]
[391022014,1760296248624,-300.0,0.00016999,2]
[391022015,1760296248633,-300.0,0.00016999,2]
[391022016,1760296248643,-300.0,0.00016999,2]
[391022017,1760296248652,-300.0,0.00016999,2]
[391022018,1760296248662,-300.0,0.00016999,2]
[391022019,1760296248671,-333.48,0.00017,2]
[391022020,1760296248681,-781.4,0.00017,2]
[391022021,1760296248690,-500.0,0.00017,2]
[391022022,1760296248699,-10000.0,0.00017,2]
[391022023,1760296248708,-1045.5939755,0.00017,2]
[391022024,1760296248719,-120311.69925121,0.00017,2]
[391022025,1760296248728,-5824.50176395,0.00017,2]
[391022026,1760296248738,-5242.05158755,0.00017,2]
[391022027,1760296248747,-250.0,0.00017,2]
[391022028,1760296248757,-350.0,0.00017017,2]
[391022029,1760296248766,-350.0,0.00017017,2]
[391022030,1760296248776,-191.40641208,0.00017056,2]
[391022031,1760296248785,-350.0,0.00017059,2]
[391022032,1760296248795,-350.0,0.00017059,2]
[391022033,1760296248804,-350.0,0.000171,2]
[391022034,1760296248815,-350.0,0.000171,2]
[391022035,1760296248824,-749.56052645,0.00017109,13]
[391022036,1760296248833,-350.0,0.00017142,2]
[391022037,1760296248843,-350.0,0.00017142,2]
[391022038,1760296248852,-556.8495599,0.00017147,2]
[391022039,1760296248862,-429.9289182,0.00017159,2]
[391022040,1760296248871,-628.6566657,0.0001716,2]
[391022041,1760296248881,-2500.0,0.00017164,2]
[391022042,1760296248895,-500.0,0.00017172,2]
[391022043,1760296248906,-350.0,0.00017183,2]
[391022044,1760296248916,-350.0,0.00017183,2]
[391022045,1760296248926,-500.0,0.00017192,2]
[391022046,1760296248937,-500.0,0.00017192,2]
[391022047,1760296248947,-5824.50176395,0.000172,2]
[391022048,1760296248956,-5242.05158755,0.000172,2]
[391022049,1760296248966,-1852.55,0.00017217,2]
[391022050,1760296248977,-350.0,0.00017225,2]